[Event "Titled Tuesday Blitz May 9 Early 2023"]
[White "Gheorghiu, Calin"]
[Black "Martinez Ramirez, Lennis"]
[WhiteFideId "1200305"]
[BlackFideId "3509079"]
[WhiteElo "2223"]
[BlackElo "2410"]
[Result "0-1"]
[Round "04"]
[TimeControl "180+2"]
[Date "2023.05.09"]
[WhiteClock "0:00:00"]
[BlackClock "0:00:09"]

1. e4 {[%clk 0:02:49]}  c5 {[%clk 0:02:59]} 2. Nf3 {[%clk 0:02:48]}  Nc6 {[%clk 0:03:00]} 3. d4 {[%clk 0:02:43]}  cxd4 {[%clk 0:03:01]} 4. Nxd4 {[%clk 0:02:43]}  Nf6 {[%clk 0:03:00]} 5. Nc3 {[%clk 0:02:42]}  e5 {[%clk 0:02:59]} 6. Ndb5 {[%clk 0:02:41]}  d6 {[%clk 0:02:59]} 7. Nd5 {[%clk 0:02:38]}  Nxd5 {[%clk 0:02:58]} 8. exd5 {[%clk 0:02:38]}  Nb8 {[%clk 0:02:58]} 9. c4 {[%clk 0:02:34]}  Be7 {[%clk 0:02:56]} 10. Be2 {[%clk 0:02:28]}  O-O {[%clk 0:02:55]} 11. O-O {[%clk 0:02:27]}  a6 {[%clk 0:02:55]} 12. Nc3 {[%clk 0:02:27]}  f5 {[%clk 0:02:54]} 13. f4 {[%clk 0:02:21]}  Nd7 {[%clk 0:02:52]} 14. fxe5 {[%clk 0:02:15]}  Nxe5 {[%clk 0:02:41]} 15. Be3 {[%clk 0:02:12]}  Bg5 {[%clk 0:02:40]} 16. Qd2 {[%clk 0:02:09]}  h6 {[%clk 0:02:10]} 17. Bxg5 {[%clk 0:02:03]}  Qxg5 {[%clk 0:02:01]} 18. Qxg5 {[%clk 0:02:01]}  hxg5 {[%clk 0:02:02]} 19. b4 {[%clk 0:01:57]}  Bd7 {[%clk 0:01:56]} 20. Rac1 {[%clk 0:01:54]}  Rfc8 {[%clk 0:01:49]} 21. Nb1 {[%clk 0:01:42]}  a5 {[%clk 0:01:44]} 22. a3 {[%clk 0:01:28]}  axb4 {[%clk 0:01:44]} 23. axb4 {[%clk 0:01:29]}  Ra2 {[%clk 0:01:44]} 24. Rf2 {[%clk 0:01:10]}  Rb2 {[%clk 0:01:43]} 25. g4 {[%clk 0:00:32]}  f4 {[%clk 0:01:35]} 26. h4 {[%clk 0:00:27]}  gxh4 {[%clk 0:01:33]} 27. g5 {[%clk 0:00:22]}  f3 {[%clk 0:01:33]} 28. Bf1 {[%clk 0:00:21]}  Rxb4 {[%clk 0:01:32]} 29. Nd2 {[%clk 0:00:19]}  Bg4 {[%clk 0:01:24]} 30. Ne4 {[%clk 0:00:19]}  Rd8 {[%clk 0:01:19]} 31. Kh1 {[%clk 0:00:13]}  Kh7 {[%clk 0:01:18]} 32. Rh2 {[%clk 0:00:12]}  Ng6 {[%clk 0:01:05]} 33. Bd3 {[%clk 0:00:12]}  Bf5 {[%clk 0:00:46]} 34. Nf2 {[%clk 0:00:06]}  Rf8 {[%clk 0:00:38]} 35. c5 {[%clk 0:00:07]}  Rd4 {[%clk 0:00:29]} 36. Bxf5 {[%clk 0:00:06]}  Rxf5 {[%clk 0:00:29]} 37. c6 {[%clk 0:00:07]}  bxc6 {[%clk 0:00:29]} 38. dxc6 {[%clk 0:00:07]}  Rc5 {[%clk 0:00:24]} 39. Rxc5 {[%clk 0:00:06]}  dxc5 {[%clk 0:00:25]} 40. c7 {[%clk 0:00:07]}  Ne7 {[%clk 0:00:25]} 41. g6+ {[%clk 0:00:07]}  Kxg6 {[%clk 0:00:25]} 42. Rh3 {[%clk 0:00:06]}  Rf4 {[%clk 0:00:22]} 43. Nd3 {[%clk 0:00:06]}  Rf5 {[%clk 0:00:21]} 44. Rxf3 {[%clk 0:00:06]}  Rxf3 {[%clk 0:00:20]} 45. Ne5+ {[%clk 0:00:06]}  Kf5 {[%clk 0:00:20]} 46. Nxf3 {[%clk 0:00:07]}  g5 {[%clk 0:00:20]} 47. Kg2 {[%clk 0:00:07]}  h3+ {[%clk 0:00:19]} 48. Kg3 {[%clk 0:00:07]}  Nc8 {[%clk 0:00:11]} 49. Nd2 {[%clk 0:00:07]}  g4 {[%clk 0:00:09]} 50. Nc4 {[%clk 0:00:07]}  Ke6 {[%clk 0:00:09]} 51. Ne3 {[%clk 0:00:06]}  Ke5 {[%clk 0:00:08]} 52. Nxg4+ {[%clk 0:00:07]}  Kd4 {[%clk 0:00:08]} 53. Kxh3 {[%clk 0:00:07]}  c4 {[%clk 0:00:09]} 54. Nf2 {[%clk 0:00:07]}  c3 {[%clk 0:00:09]} 55. Nd1 {[%clk 0:00:01]}  c2 {[%clk 0:00:09]} 56. Ne3 {[%clk 0:00:00]}  Kxe3 {[%clk 0:00:09]} 0-1


[Site "https://www.chess.com"]

[Event "Titled Tuesday Blitz May 9 Early 2023"]
[White "Korchmar, Vasiliy"]
[Black "Van Dael, Siem"]
[WhiteFideId "24131750"]
[BlackFideId "1049771"]
[WhiteElo "2370"]
[BlackElo "2336"]
[Result "1-0"]
[Round "04"]
[TimeControl "180+2"]
[Date "2023.05.09"]
[WhiteClock "0:01:01"]
[BlackClock "0:00:00"]

1. e4 {[%clk 0:02:44]}  c5 {[%clk 0:02:54]} 2. Nf3 {[%clk 0:02:43]}  d6 {[%clk 0:02:53]} 3. d4 {[%clk 0:02:43]}  cxd4 {[%clk 0:02:53]} 4. Nxd4 {[%clk 0:02:44]}  Nf6 {[%clk 0:02:52]} 5. Nc3 {[%clk 0:02:45]}  g6 {[%clk 0:02:52]} 6. Be3 {[%clk 0:02:44]}  Bg7 {[%clk 0:02:53]} 7. f3 {[%clk 0:02:45]}  O-O {[%clk 0:02:53]} 8. Qd2 {[%clk 0:02:45]}  Nc6 {[%clk 0:02:54]} 9. O-O-O {[%clk 0:02:46]}  d5 {[%clk 0:02:54]} 10. exd5 {[%clk 0:02:45]}  Nxd5 {[%clk 0:02:54]} 11. Nxc6 {[%clk 0:02:43]}  bxc6 {[%clk 0:02:54]} 12. Bd4 {[%clk 0:02:43]}  Bxd4 {[%clk 0:02:55]} 13. Qxd4 {[%clk 0:02:42]}  Qb6 {[%clk 0:02:55]} 14. Na4 {[%clk 0:02:41]}  Qc7 {[%clk 0:02:56]} 15. h4 {[%clk 0:02:25]}  h5 {[%clk 0:01:52]} 16. Bc4 {[%clk 0:02:24]}  Rd8 {[%clk 0:01:47]} 17. Bb3 {[%clk 0:02:13]}  Bf5 {[%clk 0:01:41]} 18. g4 {[%clk 0:02:08]}  hxg4 {[%clk 0:01:36]} 19. fxg4 {[%clk 0:02:08]}  e5 {[%clk 0:01:36]} 20. Qg1 {[%clk 0:02:04]}  Be4 {[%clk 0:01:35]} 21. Rh2 {[%clk 0:02:00]}  Nf4 {[%clk 0:01:33]} 22. Rxd8+ {[%clk 0:01:47]}  Rxd8 {[%clk 0:01:34]} 23. Nc5 {[%clk 0:01:46]}  Bf3 {[%clk 0:01:29]} 24. c3 {[%clk 0:01:32]}  Ne2+ {[%clk 0:01:18]} 25. Rxe2 {[%clk 0:01:32]}  Bxe2 {[%clk 0:01:19]} 26. h5 {[%clk 0:01:33]}  e4 {[%clk 0:01:09]} 27. hxg6 {[%clk 0:01:29]}  Qf4+ {[%clk 0:01:07]} 28. Kb1 {[%clk 0:01:30]}  e3 {[%clk 0:00:10]} 29. gxf7+ {[%clk 0:01:29]}  Kh7 {[%clk 0:00:08]} 30. Qh1+ {[%clk 0:01:22]}  Kg6 {[%clk 0:00:08]} 31. Qh5+ {[%clk 0:01:14]}  Kf6 {[%clk 0:00:08]} 32. Qh4+ {[%clk 0:01:07]}  Kg6 {[%clk 0:00:02]} 33. Qxd8 {[%clk 0:01:01]}  Qf1+ {[%clk 0:00:00]} 34. Kc2 {[%clk 0:01:01]} 1-0


[Site "https://www.chess.com"]

[Event "Titled Tuesday Blitz May 9 Early 2023"]
[White "Wieczorek, Oskar"]
[Black "Gatterer, Florian"]
[WhiteFideId "1133950"]
[BlackFideId "811688"]
[WhiteElo "2418"]
[BlackElo "2221"]
[Result "1-0"]
[Round "04"]
[TimeControl "180+2"]
[Date "2023.05.09"]
[WhiteClock "0:00:06"]
[BlackClock "0:00:00"]

1. e4 {[%clk 0:03:00]}  c5 {[%clk 0:02:58]} 2. Nf3 {[%clk 0:03:00]}  e6 {[%clk 0:02:58]} 3. g3 {[%clk 0:02:59]}  Nc6 {[%clk 0:02:56]} 4. Bg2 {[%clk 0:02:58]}  Nf6 {[%clk 0:02:56]} 5. Qe2 {[%clk 0:02:57]}  e5 {[%clk 0:02:56]} 6. c3 {[%clk 0:02:56]}  Be7 {[%clk 0:02:55]} 7. O-O {[%clk 0:02:56]}  O-O {[%clk 0:02:55]} 8. d3 {[%clk 0:02:57]}  h6 {[%clk 0:02:48]} 9. Na3 {[%clk 0:02:53]}  d6 {[%clk 0:02:48]} 10. Nc4 {[%clk 0:02:52]}  b5 {[%clk 0:02:47]} 11. Ne3 {[%clk 0:02:52]}  Be6 {[%clk 0:02:39]} 12. Nh4 {[%clk 0:02:47]}  d5 {[%clk 0:02:25]} 13. exd5 {[%clk 0:02:23]}  Nxd5 {[%clk 0:02:24]} 14. Nxd5 {[%clk 0:01:56]}  Bxd5 {[%clk 0:02:22]} 15. Bxd5 {[%clk 0:01:56]}  Qxd5 {[%clk 0:02:20]} 16. Nf5 {[%clk 0:01:54]}  Bf6 {[%clk 0:02:12]} 17. a4 {[%clk 0:01:27]}  b4 {[%clk 0:02:06]} 18. Qe4 {[%clk 0:00:47]}  Rfd8 {[%clk 0:01:48]} 19. Be3 {[%clk 0:00:47]}  bxc3 {[%clk 0:01:24]} 20. bxc3 {[%clk 0:00:46]}  Ne7 {[%clk 0:01:15]} 21. Nxe7+ {[%clk 0:00:25]}  Bxe7 {[%clk 0:01:13]} 22. Rfd1 {[%clk 0:00:24]}  Rac8 {[%clk 0:01:07]} 23. a5 {[%clk 0:00:22]}  a6 {[%clk 0:00:57]} 24. Qc4 {[%clk 0:00:20]}  Qc6 {[%clk 0:00:41]} 25. Rab1 {[%clk 0:00:18]}  Rb8 {[%clk 0:00:40]} 26. Qe4 {[%clk 0:00:13]}  Qxe4 {[%clk 0:00:27]} 27. dxe4 {[%clk 0:00:13]}  Rxd1+ {[%clk 0:00:26]} 28. Rxd1 {[%clk 0:00:13]}  Rb5 {[%clk 0:00:27]} 29. Rd7 {[%clk 0:00:13]}  Bf6 {[%clk 0:00:22]} 30. Rc7 {[%clk 0:00:09]}  Rxa5 {[%clk 0:00:21]} 31. Bxc5 {[%clk 0:00:10]}  Ra1+ {[%clk 0:00:20]} 32. Kg2 {[%clk 0:00:10]}  a5 {[%clk 0:00:20]} 33. Ra7 {[%clk 0:00:10]}  Rc1 {[%clk 0:00:17]} 34. Rxa5 {[%clk 0:00:07]}  Rxc3 {[%clk 0:00:17]} 35. Be3 {[%clk 0:00:07]}  Rc4 {[%clk 0:00:16]} 36. Kf3 {[%clk 0:00:07]}  h5 {[%clk 0:00:15]} 37. h4 {[%clk 0:00:07]}  g6 {[%clk 0:00:13]} 38. Ra8+ {[%clk 0:00:07]}  Kg7 {[%clk 0:00:13]} 39. Ra7 {[%clk 0:00:07]}  Rc3 {[%clk 0:00:12]} 40. Rd7 {[%clk 0:00:08]}  Rb3 {[%clk 0:00:10]} 41. Ke2 {[%clk 0:00:08]}  Rb2+ {[%clk 0:00:10]} 42. Bd2 {[%clk 0:00:07]}  Ra2 {[%clk 0:00:10]} 43. Kf3 {[%clk 0:00:07]}  Ra3+ {[%clk 0:00:10]} 44. Be3 {[%clk 0:00:08]}  Rb3 {[%clk 0:00:10]} 45. Rd6 {[%clk 0:00:08]}  Ra3 {[%clk 0:00:09]} 46. Rc6 {[%clk 0:00:08]}  Rb3 {[%clk 0:00:08]} 47. Kg2 {[%clk 0:00:08]}  Rd3 {[%clk 0:00:07]} 48. Bc5 {[%clk 0:00:09]}  Rd1 {[%clk 0:00:04]} 49. Rc8 {[%clk 0:00:08]}  Kh7 {[%clk 0:00:04]} 50. Rc7 {[%clk 0:00:07]}  Kg7 {[%clk 0:00:04]} 51. Be3 {[%clk 0:00:07]}  Rd3 {[%clk 0:00:03]} 52. Kf1 {[%clk 0:00:07]}  Rb3 {[%clk 0:00:03]} 53. Rd7 {[%clk 0:00:07]}  Rc3 {[%clk 0:00:03]} 54. Kg2 {[%clk 0:00:07]}  Rb3 {[%clk 0:00:03]} 55. Rd5 {[%clk 0:00:08]}  Rc3 {[%clk 0:00:03]} 56. Bc5 {[%clk 0:00:06]}  Rb3 {[%clk 0:00:00]} 57. Bd6 {[%clk 0:00:06]} 1-0


[Site "https://www.chess.com"]

[Event "Titled Tuesday Blitz May 9 Early 2023"]
[White "Rangel, Daniel"]
[Black "Girya, Olga"]
[WhiteFideId "2124475"]
[BlackFideId "4195752"]
[WhiteElo "2256"]
[BlackElo "2263"]
[Result "0-1"]
[Round "04"]
[TimeControl "180+2"]
[Date "2023.05.09"]
[WhiteClock "0:00:00"]
[BlackClock "0:00:13"]

1. c4 {[%clk 0:03:00]}  Nf6 {[%clk 0:02:54]} 2. g3 {[%clk 0:03:00]}  e5 {[%clk 0:02:42]} 3. Bg2 {[%clk 0:03:01]}  Nc6 {[%clk 0:02:35]} 4. Nf3 {[%clk 0:03:00]}  Bc5 {[%clk 0:02:30]} 5. O-O {[%clk 0:02:59]}  d6 {[%clk 0:02:27]} 6. Nc3 {[%clk 0:02:54]}  a5 {[%clk 0:02:22]} 7. e3 {[%clk 0:02:52]}  O-O {[%clk 0:02:20]} 8. d4 {[%clk 0:02:51]}  Bb6 {[%clk 0:02:20]} 9. Nd5 {[%clk 0:02:49]}  Ba7 {[%clk 0:02:11]} 10. b3 {[%clk 0:02:41]}  Bg4 {[%clk 0:02:11]} 11. h3 {[%clk 0:02:34]}  Bh5 {[%clk 0:02:11]} 12. dxe5 {[%clk 0:02:27]}  Nxe5 {[%clk 0:02:08]} 13. Bb2 {[%clk 0:02:26]}  Nxd5 {[%clk 0:01:44]} 14. Qxd5 {[%clk 0:02:20]}  c6 {[%clk 0:01:35]} 15. Qd1 {[%clk 0:02:19]}  Qf6 {[%clk 0:01:22]} 16. g4 {[%clk 0:02:14]}  Nxf3+ {[%clk 0:01:21]} 17. Qxf3 {[%clk 0:01:49]}  Qxb2 {[%clk 0:01:21]} 18. gxh5 {[%clk 0:01:48]}  h6 {[%clk 0:01:21]} 19. Kh1 {[%clk 0:01:42]}  f5 {[%clk 0:01:12]} 20. Rg1 {[%clk 0:01:37]}  Rae8 {[%clk 0:01:09]} 21. Rad1 {[%clk 0:01:17]}  Bc5 {[%clk 0:01:06]} 22. Qg3 {[%clk 0:00:56]}  f4 {[%clk 0:01:02]} 23. Qg6 {[%clk 0:00:42]}  fxe3 {[%clk 0:00:54]} 24. fxe3 {[%clk 0:00:39]}  Qe5 {[%clk 0:00:47]} 25. Rgf1 {[%clk 0:00:36]}  Rxf1+ {[%clk 0:00:37]} 26. Rxf1 {[%clk 0:00:35]}  Rf8 {[%clk 0:00:38]} 27. Rxf8+ {[%clk 0:00:28]}  Kxf8 {[%clk 0:00:38]} 28. Qe4 {[%clk 0:00:25]}  Bxe3 {[%clk 0:00:34]} 29. Qxe5 {[%clk 0:00:23]}  dxe5 {[%clk 0:00:35]} 30. Be4 {[%clk 0:00:24]}  Ke7 {[%clk 0:00:29]} 31. Kh2 {[%clk 0:00:24]}  Kd6 {[%clk 0:00:29]} 32. Kg3 {[%clk 0:00:20]}  Kc5 {[%clk 0:00:29]} 33. Kf3 {[%clk 0:00:19]}  Bf4 {[%clk 0:00:27]} 34. Bg6 {[%clk 0:00:12]}  Kb4 {[%clk 0:00:27]} 35. Bf7 {[%clk 0:00:12]}  c5 {[%clk 0:00:17]} 36. Be8 {[%clk 0:00:07]}  Ka3 {[%clk 0:00:16]} 37. Ba4 {[%clk 0:00:08]}  Kxa2 {[%clk 0:00:16]} 38. Ke4 {[%clk 0:00:08]}  Ka3 {[%clk 0:00:16]} 39. Kf3 {[%clk 0:00:09]}  Kb4 {[%clk 0:00:16]} 40. Ke4 {[%clk 0:00:09]}  Bh2 {[%clk 0:00:15]} 41. Kf5 {[%clk 0:00:09]}  b5 {[%clk 0:00:14]} 42. cxb5 {[%clk 0:00:07]}  c4 {[%clk 0:00:15]} 43. b6 {[%clk 0:00:05]}  cxb3 {[%clk 0:00:14]} 44. Ke4 {[%clk 0:00:03]}  Bg1 {[%clk 0:00:12]} 45. b7 {[%clk 0:00:00]}  Ba7 {[%clk 0:00:13]} 0-1


[Site "https://www.chess.com"]

[Event "Titled Tuesday Blitz May 9 Early 2023"]
[White "Kohler, Aran"]
[Black "Weishaeutel, Moritz"]
[WhiteFideId "1002856"]
[BlackFideId "12967300"]
[WhiteElo "2347"]
[BlackElo "2301"]
[Result "1-0"]
[Round "04"]
[TimeControl "180+2"]
[Date "2023.05.09"]
[WhiteClock "0:00:25"]
[BlackClock "0:00:02"]

1. d4 {[%clk 0:03:00]}  Nf6 {[%clk 0:02:59]} 2. c3 {[%clk 0:03:01]}  d5 {[%clk 0:02:58]} 3. Bg5 {[%clk 0:03:01]}  Ne4 {[%clk 0:02:56]} 4. h4 {[%clk 0:03:00]}  Bf5 {[%clk 0:02:49]} 5. Nd2 {[%clk 0:02:59]}  Nxg5 {[%clk 0:02:48]} 6. hxg5 {[%clk 0:02:59]}  e6 {[%clk 0:02:49]} 7. f4 {[%clk 0:02:46]}  Bd6 {[%clk 0:02:43]} 8. e3 {[%clk 0:02:46]}  c5 {[%clk 0:02:31]} 9. g4 {[%clk 0:02:40]}  Bg6 {[%clk 0:02:25]} 10. Ngf3 {[%clk 0:02:40]}  Nc6 {[%clk 0:02:01]} 11. Nh4 {[%clk 0:02:30]}  cxd4 {[%clk 0:01:31]} 12. Nxg6 {[%clk 0:02:24]}  fxg6 {[%clk 0:01:30]} 13. cxd4 {[%clk 0:02:23]}  O-O {[%clk 0:01:27]} 14. a3 {[%clk 0:02:14]}  Qb6 {[%clk 0:01:03]} 15. Qb3 {[%clk 0:02:01]}  Qc7 {[%clk 0:00:56]} 16. Bg2 {[%clk 0:01:17]}  Bxf4 {[%clk 0:00:25]} 17. exf4 {[%clk 0:01:17]}  Nxd4 {[%clk 0:00:26]} 18. Qh3 {[%clk 0:01:04]}  Nc2+ {[%clk 0:00:26]} 19. Kd1 {[%clk 0:01:03]}  Nxa1 {[%clk 0:00:26]} 20. Qxh7+ {[%clk 0:01:01]}  Kf7 {[%clk 0:00:26]} 21. f5 {[%clk 0:01:02]}  Qc2+ {[%clk 0:00:05]} 22. Ke2 {[%clk 0:01:02]}  exf5 {[%clk 0:00:05]} 23. Bxd5+ {[%clk 0:00:59]}  Ke7 {[%clk 0:00:06]} 24. Qxg7+ {[%clk 0:00:58]}  Kd6 {[%clk 0:00:06]} 25. Qd4 {[%clk 0:00:53]}  Qc5 {[%clk 0:00:03]} 26. Nc4+ {[%clk 0:00:47]}  Qxc4+ {[%clk 0:00:04]} 27. Bxc4+ {[%clk 0:00:46]}  Kc7 {[%clk 0:00:04]} 28. Qc5+ {[%clk 0:00:43]}  Kd7 {[%clk 0:00:04]} 29. Bb5+ {[%clk 0:00:43]}  Ke6 {[%clk 0:00:04]} 30. Bc4+ {[%clk 0:00:34]}  Kd7 {[%clk 0:00:04]} 31. Rxa1 {[%clk 0:00:33]}  Rae8+ {[%clk 0:00:03]} 32. Kd2 {[%clk 0:00:33]}  Rd8 {[%clk 0:00:02]} 33. Kc3 {[%clk 0:00:33]}  fxg4 {[%clk 0:00:01]} 34. Rd1+ {[%clk 0:00:30]}  Ke8 {[%clk 0:00:02]} 35. Qe5# {[%clk 0:00:25]} 1-0


[Site "https://www.chess.com"]

[Event "Titled Tuesday Blitz May 9 Early 2023"]
[White "Ambartsumova, Karina"]
[Black "I_KID_you_not"]
[WhiteFideId "4166299"]
[WhiteElo "2240"]
[BlackElo "2289"]
[Result "1-0"]
[Round "04"]
[TimeControl "180+2"]
[Date "2023.05.09"]
[WhiteClock "0:00:52"]
[BlackClock "0:00:06"]

1. e4 {[%clk 0:02:58]}  c5 {[%clk 0:03:00]} 2. Nf3 {[%clk 0:02:58]}  Nc6 {[%clk 0:03:00]} 3. d4 {[%clk 0:02:58]}  cxd4 {[%clk 0:03:00]} 4. Nxd4 {[%clk 0:02:59]}  Nf6 {[%clk 0:03:01]} 5. Nc3 {[%clk 0:02:59]}  h5 {[%clk 0:03:02]} 6. Nxc6 {[%clk 0:02:54]}  bxc6 {[%clk 0:03:02]} 7. e5 {[%clk 0:02:49]}  Ng4 {[%clk 0:03:02]} 8. Bf4 {[%clk 0:02:50]}  Qc7 {[%clk 0:03:00]} 9. Qe2 {[%clk 0:02:41]}  g5 {[%clk 0:02:59]} 10. Bxg5 {[%clk 0:02:39]}  Qxe5 {[%clk 0:02:59]} 11. Qxe5 {[%clk 0:02:35]}  Nxe5 {[%clk 0:02:59]} 12. O-O-O {[%clk 0:02:36]}  Bg7 {[%clk 0:02:53]} 13. Be2 {[%clk 0:02:30]}  d6 {[%clk 0:02:46]} 14. Rhe1 {[%clk 0:02:29]}  Bh6 {[%clk 0:02:38]} 15. h4 {[%clk 0:02:17]}  Bg4 {[%clk 0:02:26]} 16. f3 {[%clk 0:02:14]}  Be6 {[%clk 0:02:25]} 17. Ne4 {[%clk 0:02:08]}  f6 {[%clk 0:02:12]} 18. Bxh6 {[%clk 0:01:59]}  Rxh6 {[%clk 0:02:12]} 19. f4 {[%clk 0:01:59]}  Nf7 {[%clk 0:01:44]} 20. Bf3 {[%clk 0:01:53]}  Bd5 {[%clk 0:01:24]} 21. c4 {[%clk 0:01:40]}  Bxe4 {[%clk 0:01:22]} 22. Rxe4 {[%clk 0:01:40]}  Rc8 {[%clk 0:01:12]} 23. Re6 {[%clk 0:01:28]}  Nd8 {[%clk 0:01:08]} 24. Re2 {[%clk 0:01:22]}  Kf7 {[%clk 0:01:03]} 25. f5 {[%clk 0:01:19]}  c5 {[%clk 0:00:58]} 26. Bd5+ {[%clk 0:01:18]}  Kf8 {[%clk 0:00:58]} 27. Rd3 {[%clk 0:01:17]}  Nf7 {[%clk 0:00:55]} 28. Rg3 {[%clk 0:01:18]}  Rh8 {[%clk 0:00:51]} 29. Kc2 {[%clk 0:01:08]}  Ne5 {[%clk 0:00:51]} 30. Ra3 {[%clk 0:00:59]}  Rc7 {[%clk 0:00:50]} 31. Ree3 {[%clk 0:00:58]}  Kg7 {[%clk 0:00:47]} 32. Ra6 {[%clk 0:00:55]}  Rb8 {[%clk 0:00:43]} 33. Rg3+ {[%clk 0:00:55]}  Kh7 {[%clk 0:00:40]} 34. Rga3 {[%clk 0:00:55]}  Rb4 {[%clk 0:00:23]} 35. b3 {[%clk 0:00:54]}  Rb8 {[%clk 0:00:15]} 36. Rxa7 {[%clk 0:00:52]}  Rc6 {[%clk 0:00:06]} 1-0


[Site "https://www.chess.com"]

[Event "Titled Tuesday Blitz May 9 Early 2023"]
[White "cryptoguru02"]
[Black "Nissinen, Niilo Man"]
[BlackFideId "30950767"]
[WhiteElo "2614"]
[BlackElo "1952"]
[Result "1-0"]
[Round "04"]
[TimeControl "180+2"]
[Date "2023.05.09"]
[WhiteClock "0:00:43"]
[BlackClock "0:00:00"]

1. d4 {[%clk 0:03:00]}  Nf6 {[%clk 0:03:00]} 2. c4 {[%clk 0:02:59]}  g6 {[%clk 0:03:00]} 3. Nc3 {[%clk 0:02:59]}  d5 {[%clk 0:03:00]} 4. Bf4 {[%clk 0:02:58]}  Bg7 {[%clk 0:02:58]} 5. e3 {[%clk 0:02:58]}  O-O {[%clk 0:02:57]} 6. Rc1 {[%clk 0:02:58]}  Be6 {[%clk 0:02:55]} 7. cxd5 {[%clk 0:02:46]}  Nxd5 {[%clk 0:02:55]} 8. Nxd5 {[%clk 0:02:46]}  Qxd5 {[%clk 0:02:52]} 9. b3 {[%clk 0:02:46]}  c6 {[%clk 0:02:27]} 10. Nf3 {[%clk 0:02:43]}  Na6 {[%clk 0:02:14]} 11. Qd2 {[%clk 0:02:36]}  Bg4 {[%clk 0:01:34]} 12. Bc4 {[%clk 0:02:14]}  Qh5 {[%clk 0:01:23]} 13. Ne5 {[%clk 0:01:53]}  Rac8 {[%clk 0:00:15]} 14. Bxa6 {[%clk 0:01:39]}  bxa6 {[%clk 0:00:16]} 15. Rc5 {[%clk 0:01:37]}  Bxe5 {[%clk 0:00:10]} 16. Bxe5 {[%clk 0:01:25]}  Qh6 {[%clk 0:00:10]} 17. O-O {[%clk 0:01:20]}  Be6 {[%clk 0:00:10]} 18. Qe2 {[%clk 0:01:13]}  Bd5 {[%clk 0:00:09]} 19. e4 {[%clk 0:01:12]}  Be6 {[%clk 0:00:10]} 20. Rfc1 {[%clk 0:01:08]}  f6 {[%clk 0:00:07]} 21. Bg3 {[%clk 0:01:07]}  f5 {[%clk 0:00:04]} 22. exf5 {[%clk 0:01:04]}  gxf5 {[%clk 0:00:02]} 23. Bf4 {[%clk 0:00:57]}  Qg6 {[%clk 0:00:02]} 24. Qe3 {[%clk 0:00:46]}  Bd5 {[%clk 0:00:02]} 25. Qg3 {[%clk 0:00:46]}  Qxg3 {[%clk 0:00:02]} 26. hxg3 {[%clk 0:00:47]}  e6 {[%clk 0:00:00]} 27. Ra5 {[%clk 0:00:43]} 1-0


[Site "https://www.chess.com"]

[Event "Titled Tuesday Blitz May 9 Early 2023"]
[White "Yonal, Timur"]
[Black "Piesik, Piotr"]
[WhiteFideId "44115725"]
[BlackFideId "1136194"]
[WhiteElo "1966"]
[BlackElo "2299"]
[Result "0-1"]
[Round "04"]
[TimeControl "180+2"]
[Date "2023.05.09"]
[WhiteClock "0:00:04"]
[BlackClock "0:00:56"]

1. e4 {[%clk 0:03:00]}  g6 {[%clk 0:02:59]} 2. d4 {[%clk 0:03:00]}  Bg7 {[%clk 0:02:59]} 3. Nc3 {[%clk 0:03:00]}  c6 {[%clk 0:02:59]} 4. f4 {[%clk 0:02:54]}  d5 {[%clk 0:02:59]} 5. e5 {[%clk 0:02:51]}  Nh6 {[%clk 0:02:59]} 6. Nf3 {[%clk 0:02:51]}  Bg4 {[%clk 0:02:59]} 7. Be2 {[%clk 0:02:49]}  Nf5 {[%clk 0:02:58]} 8. O-O {[%clk 0:02:49]}  h5 {[%clk 0:02:58]} 9. Ng5 {[%clk 0:02:45]}  Bxe2 {[%clk 0:02:57]} 10. Nxe2 {[%clk 0:02:46]}  e6 {[%clk 0:02:57]} 11. c3 {[%clk 0:02:35]}  Bf8 {[%clk 0:02:56]} 12. Qb3 {[%clk 0:02:27]}  Qc7 {[%clk 0:02:51]} 13. Kf2 {[%clk 0:02:06]}  c5 {[%clk 0:02:50]} 14. Be3 {[%clk 0:02:05]}  Nc6 {[%clk 0:02:45]} 15. dxc5 {[%clk 0:01:55]}  Nxe3 {[%clk 0:02:45]} 16. Kxe3 {[%clk 0:01:56]}  Bxc5+ {[%clk 0:02:45]} 17. Nd4 {[%clk 0:01:56]}  O-O-O {[%clk 0:02:06]} 18. Nf3 {[%clk 0:01:08]}  g5 {[%clk 0:01:54]} 19. Nxg5 {[%clk 0:01:02]}  Nxe5 {[%clk 0:01:53]} 20. Kf2 {[%clk 0:00:56]}  Nd3+ {[%clk 0:01:35]} 21. Kg1 {[%clk 0:00:51]}  Nxf4 {[%clk 0:01:33]} 22. Kh1 {[%clk 0:00:51]}  Rhg8 {[%clk 0:01:21]} 23. Nb5 {[%clk 0:00:37]}  Qe5 {[%clk 0:01:10]} 24. h4 {[%clk 0:00:07]}  Ne2 {[%clk 0:01:05]} 25. Nd4 {[%clk 0:00:04]}  Ng3+ {[%clk 0:01:05]} 26. Kg1 {[%clk 0:00:04]}  Bxd4+ {[%clk 0:01:02]} 27. cxd4 {[%clk 0:00:04]}  Qxd4+ {[%clk 0:01:03]} 28. Kh2 {[%clk 0:00:04]}  Qxh4+ {[%clk 0:01:02]} 29. Kg1 {[%clk 0:00:04]}  Ne2# {[%clk 0:00:56]} 0-1


[Site "https://www.chess.com"]

[Event "Titled Tuesday Blitz May 9 Early 2023"]
[White "Domingo Nunez, Ruben"]
[Black "Ruge, Edison"]
[WhiteFideId "22245570"]
[BlackFideId "4401000"]
[WhiteElo "2404"]
[BlackElo "2175"]
[Result "1-0"]
[Round "04"]
[TimeControl "180+2"]
[Date "2023.05.09"]
[WhiteClock "0:02:10"]
[BlackClock "0:02:27"]

1. b3 {[%clk 0:03:00]}  e5 {[%clk 0:02:57]} 2. Bb2 {[%clk 0:03:00]}  d6 {[%clk 0:02:58]} 3. Nf3 {[%clk 0:02:58]}  Nf6 {[%clk 0:02:58]} 4. e3 {[%clk 0:02:57]}  Be7 {[%clk 0:02:59]} 5. c4 {[%clk 0:02:56]}  O-O {[%clk 0:02:58]} 6. Nc3 {[%clk 0:02:55]}  e4 {[%clk 0:02:53]} 7. Ng5 {[%clk 0:02:54]}  Bf5 {[%clk 0:02:48]} 8. Qc2 {[%clk 0:02:54]}  Nc6 {[%clk 0:02:46]} 9. a3 {[%clk 0:02:12]}  d5 {[%clk 0:02:32]} 10. cxd5 {[%clk 0:02:11]}  Qxd5 {[%clk 0:02:27]} 11. Nxd5 {[%clk 0:02:10]} 1-0


[Site "https://www.chess.com"]